bitfinex/quotes_ETHUSD_20260203
["timestamp","ask_amount","ask_price","bid_price","bid_amount"]
[1770138756246,0.00674551,2225.3,2224.0,12.39562024]
[1770138756445,1.5528959,2225.9,2224.3,4.49564631]
[1770138756681,2.17036841,2226.7,2225.1,0.00674551]
[1770138756977,2.17036841,2226.7,2225.0,0.00674551]
[1770138756978,0.00674551,2226.4,2225.0,0.942]
[1770138757181,0.92330381,2226.3,2225.0,0.942]
[1770138757387,1.12298984,2226.2,2225.0,2.0655754]
[1770138758956,1.12298984,2226.2,2225.0,0.942]
[1770138759182,0.00674551,2225.8,2224.2,4.49596373]
[1770138759352,1.12319166,2225.8,2224.2,4.49596373]
[1770138759772,1.12319166,2225.8,2224.4,0.00674551]
[1770138759962,0.00674551,2225.4,2224.1,0.378]
[1770138760279,0.00674551,2225.4,2223.7,0.001]
[1770138760280,0.00674551,2224.8,2223.7,0.001]
[1770138760460,1.5528959,2225.2,2223.8,1.12416957]
[1770138760774,0.92369748,2225.1,2223.7,2.45185356]
[1770138760973,0.92369748,2225.0,2223.7,1.12520552]
[1770138761177,1.5528959,2225.4,2224.0,1.12405806]
[1770138761349,1.12349451,2225.2,2224.1,1.12403463]
[1770138761548,1.12349451,2225.2,2224.0,2.06607513]
[1770138761755,4.49342926,2225.5,2224.0,2.06609599]
[1770138761756,1.12334306,2225.5,2224.0,2.06609599]
[1770138761978,1.48604358,2225.4,2224.1,0.65624989]
[1770138762151,0.56165379,2225.4,2224.1,0.65624989]
[1770138762478,0.56165379,2225.4,2223.7,4.50465757]
[1770138762479,0.56165379,2225.4,2223.8,12.40236575]
[1770138762677,1.5528959,2224.9,2223.7,0.001]
[1770138762880,0.93051792,2224.8,2223.7,0.001]
[1770138763176,0.93051792,2224.8,2222.9,1.1313747]
[1770138763177,11.72313473,2222.9,2221.3,0.02195]
[1770138763349,0.00674551,2221.9,2221.3,13.54301348]
[1770138763546,0.94874551,2223.3,2221.3,13.54301348]
[1770138763547,0.6938349,2223.6,2222.7,0.00674551]
[1770138763789,2.74060769,2223.7,2222.8,0.00674551]
[1770138763954,2.916486,2223.3,2222.5,0.942]
[1770138764156,2.916486,2223.4,2222.5,0.942]
[1770138764464,3.86486172,2223.7,2222.9,0.00674794]
[1770138764666,2.916486,2223.5,2222.6,0.00674794]
[1770138764876,2.916486,2223.5,2222.6,1.34185955]
[1770138765375,2.916486,2223.5,2222.6,1.33511161]
[1770138765376,2.916486,2223.3,2222.6,1.33511161]
[1770138765756,2.74060769,2223.7,2222.8,0.00674794]
[1770138766257,2.74060769,2223.7,2222.6,1.33511161]
[1770138766258,3.86487578,2223.7,2222.6,1.33511161]
[1770138766456,3.86487578,2223.7,2222.5,0.942]
[1770138766858,3.86487578,2223.7,2222.6,1.12479773]
[1770138767062,3.86487578,2223.7,2222.5,0.942]
[1770138768155,3.87162372,2223.7,2222.5,0.942]
[1770138768351,0.00674794,2223.3,2221.4,12.39562024]
[1770138768584,0.00674794,2223.5,2221.7,1.12525686]
[1770138768854,0.00674794,2223.1,2221.5,2.18156202]
[1770138769178,0.00674794,2223.1,2221.5,2.06733207]
[1770138769179,0.00674976,2223.1,2221.5,2.06733207]
[1770138769371,0.00674976,2223.1,2221.5,0.942]
[1770138769575,0.00674976,2223.1,2221.5,0.892]
[1770138769799,1.13125497,2223.2,2221.5,2.01736322]
[1770138770100,0.00674976,2223.1,2221.5,2.01736322]
[1770138770261,6.58622871,2223.0,2220.6,12.40237]
[1770138770584,0.00674976,2223.0,2221.0,12.81651818]
[1770138770765,0.00674976,2223.0,2221.1,0.00674976]
[1770138770963,0.56427754,2223.1,2221.7,0.00674976]
[1770138771377,1.12460638,2223.0,2221.6,1.12531018]
[1770138771579,0.61873095,2222.9,2221.6,1.12530832]
[1770138771784,3.96526906,2223.6,2222.2,0.00674976]
[1770138771981,1.12435349,2223.5,2222.2,0.00674976]
[1770138772277,1.12435349,2223.5,2221.6,1.12530832]
[1770138772278,0.00674976,2223.4,2221.6,1.12530832]
[1770138772477,0.00674976,2222.9,2221.6,1.12530832]
[1770138772704,0.00674976,2222.4,2220.6,12.81651818]
[1770138772906,0.00674976,2222.7,2220.9,0.00674976]
[1770138773069,0.00674976,2222.6,2221.3,1.12546269]
[1770138773397,1.12485939,2222.5,2221.0,1.12561909]
[1770138773765,4.50554526,2222.9,2221.0,1.12561909]
[1770138773766,4.49802087,2223.4,2221.5,0.00675128]
[1770138773995,0.00675128,2223.2,2221.6,0.943]
[1770138774292,4.50477215,2223.4,2221.6,0.943]
[1770138774593,12.90521043,2223.3,2221.6,0.943]
[1770138774814,12.89845915,2223.3,2221.6,0.943]
[1770138775207,1.12440406,2223.5,2222.1,0.00675128]
[1770138775208,1.12437312,2223.5,2222.1,0.00675128]
[1770138775516,3.12773095,2223.6,2222.3,0.00675128]
[1770138775517,4.25206759,2223.6,2222.3,0.00675128]
[1770138775720,3.12773095,2223.6,2222.2,13.87856275]
[1770138775930,4.49478604,2224.9,2223.1,0.00675128]
[1770138776125,0.00675128,2224.8,2223.1,0.00675128]
[1770138776285,0.00675128,2224.2,2222.6,12.74680022]
[1770138776479,0.00675128,2224.4,2222.9,0.943]
[1770138776719,0.00675128,2224.5,2222.9,0.943]
[1770138776902,0.00675128,2224.5,2221.8,4.74036658]
[1770138776903,0.00675128,2224.2,2222.3,1.763207]
[1770138777095,0.00675128,2224.5,2222.5,0.00675128]
[1770138777313,1.12379753,2224.6,2222.7,1.12475817]
[1770138777505,1.12379753,2224.6,2222.7,1.13150945]
[1770138777506,0.00675128,2224.4,2222.7,1.13150945]
[1770138777709,0.00675128,2224.5,2222.8,0.56372934]
[1770138777907,1.13054881,2224.6,2222.9,0.00675128]
[1770138777908,1.12379753,2224.6,2222.9,0.00675128]
[1770138778102,1.12379753,2224.6,2223.0,0.00675128]
[1770138778620,1.12379753,2224.6,2222.8,0.57048062]
[1770138778801,0.00675128,2224.2,2222.8,0.56372934]
[1770138779139,0.00675128,2224.3,2222.8,1.50672934]
[1770138779444,1.12420181,2223.8,2222.5,4.49923513]
[1770138779745,1.1241376,2224.0,2222.5,4.50598641]
[1770138780109,0.00675128,2223.9,2222.5,4.49923513]
[1770138780417,0.00675128,2223.9,2222.6,0.943]
[1770138780602,0.56406505,2223.9,2222.6,0.943]
[1770138780802,1.1241376,2224.0,2222.6,0.943]
[1770138781004,0.00675128,2223.3,2222.0,4.50030165]
[1770138781207,0.00675128,2223.1,2221.8,1.12516819]
[1770138781405,1.13145885,2222.8,2221.6,0.943]
[1770138781639,0.56370404,2222.7,2221.6,0.943]
[1770138781850,1.12470757,2222.8,2221.6,0.943]
[1770138782703,1.12470757,2222.8,2220.9,3.19712508]
[1770138782704,0.00675128,2222.2,2220.9,3.19712508]
[1770138782905,0.00675128,2222.6,2221.0,1.12559417]
[1770138783107,1.12470757,2222.8,2221.2,0.00675128]
[1770138783504,1.1245558,2223.1,2221.3,1.12546706]
[1770138783707,0.56295303,2223.0,2221.4,0.56340866]
[1770138784138,0.56295303,2223.0,2221.4,0.57015994]
[1770138784510,0.56295303,2223.0,2221.4,0.56340866]
[1770138784945,1.12415126,2224.0,2222.2,0.00675128]
[1770138785256,4.49541875,2224.5,2222.7,0.00675128]
[1770138785424,1.12394232,2224.4,2223.1,1.1245558]
[1770138785630,1.12394232,2224.4,2223.2,0.94975128]
[1770138785876,0.56193826,2224.4,2223.1,1.1245558]
[1770138786151,0.00675128,2224.7,2223.0,1.1245971]
[1770138786152,0.00675128,2224.5,2223.0,1.1245971]
[1770138786326,0.92052891,2224.4,2223.0,1.1245971]
[1770138786525,0.00675128,2224.6,2223.0,1.12460405]
[1770138786526,0.92088297,2224.3,2223.0,1.12460405]
[1770138786728,1.5528959,2225.2,2223.6,0.00675128]
[1770138787028,5.41597407,2225.1,2223.7,0.00675128]
[1770138787229,1.57566972,2225.0,2223.6,0.943]
[1770138787459,1.77757651,2225.0,2223.7,1.12425237]
[1770138787645,0.9225352,2224.9,2223.6,1.12427555]
[1770138787958,1.1236246,2225.0,2223.6,1.12427555]
[1770138788265,0.9399,2224.6,2223.6,1.12429141]
[1770138788486,0.9399,2224.6,2223.5,1.12430862]
[1770138788633,0.9399,2224.6,2223.6,1.12430224]
[1770138788834,0.9399,2224.6,2223.6,0.56215877]
[1770138789156,0.92423962,2224.5,2223.4,1.12437203]
[1770138789373,0.92522733,2224.4,2223.3,0.00675128]
[1770138789532,1.1239491,2224.3,2223.3,1.12443828]
[1770138789747,1.1239491,2224.3,2223.1,5.44117185]
[1770138790068,0.92510559,2224.2,2223.1,2.06751938]
[1770138790268,0.92510559,2224.1,2223.1,0.943]
[1770138790472,1.1239491,2224.3,2222.6,0.00675128]
[1770138790473,0.92510559,2224.0,2222.6,0.00675128]
[1770138790672,0.00675128,2223.5,2221.9,4.5004604]
[1770138790977,0.00675128,2223.5,2222.0,1.57513462]
[1770138790978,1.5528959,2223.2,2222.0,1.57513462]
[1770138791179,0.92510559,2223.1,2222.0,1.12508858]
[1770138791375,0.92510559,2223.0,2221.9,4.50045004]
[1770138791575,1.12457908,2223.1,2221.9,4.50720132]
[1770138791753,1.12457908,2223.1,2221.9,4.50045004]
[1770138791946,1.12440406,2223.4,2222.0,0.00675128]
[1770138792151,0.92608132,2223.3,2222.0,0.6588867]
[1770138792373,0.92608132,2223.2,2222.0,0.6588867]
[1770138792577,0.92608132,2223.1,2222.0,0.6588867]
[1770138792877,1.12440406,2223.4,2222.0,0.6588867]
[1770138793081,1.12440406,2223.4,2221.6,0.00675128]
[1770138793082,0.00675128,2222.4,2221.1,0.0447]
[1770138793377,0.00675128,2222.4,2221.1,1.17023142]
[1770138793378,1.12501125,2222.2,2221.1,1.17023142]
[1770138793580,0.92678772,2222.1,2221.1,1.17023142]
[1770138793746,0.92563694,2222.0,2221.2,0.56726562]
[1770138793953,0.92547878,2221.9,2221.1,0.0447]
[1770138794289,0.92493959,2221.8,2221.1,0.0447]
[1770138794459,0.92435978,2221.7,2221.1,0.0447]
[1770138794658,1.12501125,2222.2,2221.1,1.17026153]
[1770138794874,0.92443523,2222.1,2221.1,1.17025277]
[1770138795055,0.92443523,2222.0,2221.1,1.73755202]
[1770138795383,6.05969309,2222.4,2221.1,1.1702527]
[1770138795384,4.500045,2222.4,2221.1,1.1702527]
[1770138795571,0.92405265,2222.3,2221.1,1.1702527]
[1770138795769,1.12477661,2222.7,2221.1,1.1702527]
[1770138795957,0.92465423,2222.6,2221.3,0.00675219]
[1770138796159,1.12477661,2222.7,2221.3,0.00675219]
[1770138796360,0.56238093,2222.7,2221.6,0.001]
[1770138796589,4.49850301,2223.0,2221.6,0.001]
[1770138796962,4.49787814,2223.3,2221.6,0.001]
[1770138796963,1.12450521,2223.2,2221.7,0.00675219]
[1770138797163,0.92430645,2223.1,2221.6,0.001]
[1770138797363,1.12470757,2222.8,2221.6,0.001]
[1770138797563,1.5528959,2223.3,2221.6,0.65808287]
[1770138797763,2.04876749,2223.2,2221.7,0.00675219]
[1770138797989,0.92426228,2223.1,2221.7,0.00675219]
[1770138798167,1.12450521,2223.2,2221.7,0.00675219]
[1770138798362,0.92440571,2223.1,2221.7,0.00675219]
[1770138798567,1.12447162,2223.3,2221.8,0.00675219]
[1770138798769,1.12430293,2223.6,2222.0,0.00675219]
[1770138798973,0.92398968,2223.5,2222.0,0.00675219]
[1770138799287,4.49693802,2223.8,2222.0,0.00675219]
[1770138799476,0.92418526,2223.7,2222.5,0.00675219]
[1770138799658,4.49646646,2224.0,2222.6,0.943]
[1770138799868,2.4981906,2223.9,2222.6,0.943]
[1770138800201,0.92436657,2223.8,2222.6,0.943]
[1770138800597,1.57382403,2223.9,2222.6,0.943]
[1770138800787,1.12398312,2224.3,2222.6,0.94975219]
[1770138801097,0.92481727,2224.2,2222.7,0.943]
[1770138801300,0.92481727,2224.1,2222.7,0.94975219]
[1770138801599,6.05511191,2224.5,2222.9,1.12465697]
[1770138801778,0.93179208,2224.4,2222.9,1.12465697]
[1770138801983,1.62373029,2224.3,2223.0,0.56232849]
[1770138802200,0.93179208,2224.2,2222.9,1.12465697]
[1770138802496,0.93179208,2224.1,2222.9,1.12465697]
[1770138802798,0.92503989,2224.0,2222.9,1.12465697]
[1770138803102,0.92490044,2223.9,2222.9,1.12465697]
[1770138803271,0.6986904,2224.3,2222.9,1.12465697]
[1770138803488,1.34984587,2224.2,2223.1,1.1245558]
[1770138803691,0.6986904,2224.3,2223.1,1.1245558]
[1770138803890,1.82264324,2224.3,2223.1,1.1245558]
[1770138804778,1.12385709,2224.5,2223.1,1.13130799]
[1770138804980,2.06369821,2224.6,2223.2,0.00675219]
[1770138805185,0.9399,2224.6,2223.5,0.00675219]
[1770138805388,0.9399,2224.6,2223.6,0.943]
[1770138805593,2.06371365,2224.6,2223.7,0.943]
[1770138805773,0.9399,2224.6,2223.7,0.943]
[1770138806187,2.06370319,2224.6,2223.7,0.943]
[1770138806388,2.71957804,2224.6,2223.7,0.943]
[1770138807681,2.71957804,2224.6,2223.8,1.12420181]
[1770138808377,1.85782148,2225.7,2224.0,0.00675219]
[1770138808687,0.30492558,2225.7,2224.2,0.00675219]
[1770138808903,1.42817144,2225.7,2224.2,11.91311952]
[1770138809082,1.42817144,2225.7,2224.2,11.91987171]
[1770138809410,0.30492558,2225.7,2224.6,0.00675219]
[1770138809607,0.30492558,2225.7,2224.8,1.12369651]
[1770138809905,0.30492558,2225.7,2224.8,1.1304487]
[1770138810105,1.12311383,2226.0,2224.8,1.1304487]
[1770138810311,1.12311383,2226.0,2224.3,0.82269269]
[1770138810610,1.12311383,2226.0,2224.2,0.00675219]
[1770138810611,0.00675219,2225.6,2224.2,0.943]
[1770138810775,0.0011,2224.4,2224.2,2.0669914]
[1770138811180,0.0011,2224.4,2223.1,16.41805898]
[1770138811377,12.48601859,2224.4,2223.0,0.45477779]
[1770138811577,12.48601859,2224.4,2222.3,1.12496062]
[1770138811578,1.12415126,2223.9,2222.3,1.12496062]
[1770138811834,4.52926215,2224.3,2222.9,0.19475219]
[1770138811835,2.3725884,2224.3,2222.9,0.19475219]
[1770138812000,4.49689643,2224.4,2223.1,0.00675219]
[1770138812001,0.0011,2224.4,2223.1,0.00675219]
[1770138812316,0.0011,2224.4,2223.2,0.00675219]
[1770138812518,1.12499962,2224.4,2222.9,0.19475219]
[1770138812892,1.12499962,2224.4,2222.9,0.188]
[1770138813075,0.56272415,2224.3,2222.9,0.188]
[1770138813279,0.56272415,2224.3,2223.0,0.942]
[1770138813481,0.0011,2224.4,2223.4,4.68828119]
[1770138813724,0.0011,2224.4,2223.5,1.12435349]
[1770138815999,0.0011,2224.4,2223.3,4.49741398]
[1770138816208,1.12334306,2225.5,2223.7,0.00675219]
[1770138816510,0.56167153,2225.4,2223.8,0.942]
[1770138816890,0.00675219,2225.3,2223.8,0.942]
[1770138817431,0.56842372,2225.4,2223.8,0.942]
[1770138817432,0.56167153,2225.4,2223.8,0.942]
[1770138817784,0.00675219,2225.0,2223.3,4.49741398]
[1770138817985,0.00675219,2225.0,2223.5,1.12435349]
[1770138817986,1.1235955,2225.0,2223.5,1.12435349]
[1770138818289,1.13034769,2225.0,2223.5,1.12435349]
[1770138818483,1.1235955,2225.0,2223.5,1.12435349]
[1770138819302,0.00675219,2224.8,2223.5,1.12435349]
[1770138819500,0.00675219,2224.7,2223.5,1.12435349]
[1770138819895,0.00675219,2224.5,2222.9,4.49850013]
[1770138820211,1.1239491,2224.3,2223.0,1.12460401]
[1770138820510,0.00675219,2224.2,2223.0,1.12460233]
[1770138820718,1.1239491,2224.3,2223.0,1.12460233]
[1770138820880,1.12363203,2225.0,2223.4,0.00675219]
[1770138821084,0.00675219,2224.8,2223.2,0.942]
[1770138821281,0.92895849,2224.7,2223.0,1.12460233]
[1770138821521,13.93933354,2224.8,2223.2,0.00675219]
[1770138822128,1.12374702,2224.7,2223.5,1.12435349]
[1770138822324,1.12374702,2224.7,2223.5,1.13110568]
[1770138822698,1.12373155,2224.8,2223.6,0.00675219]
[1770138822898,1.12373155,2224.8,2223.6,0.57095459]
[1770138823921,4.49404929,2225.2,2223.9,0.00675219]
[1770138824123,4.49404929,2225.2,2224.0,1.12410071]
[1770138824499,0.0011,2224.5,2224.0,1.12410071]
[1770138824696,4.49404929,2225.2,2224.0,1.1308529]
[1770138824918,0.0011,2224.7,2224.1,0.5634008]
[1770138825425,0.0011,2224.7,2223.8,0.942]
[1770138825626,0.0011,2224.7,2223.9,1.12414782]
[1770138825997,0.0011,2224.7,2224.1,1.12405017]
[1770138826198,1.15229536,2225.5,2224.2,3.244915]
[1770138826432,1.12319166,2225.8,2224.6,0.00675219]
[1770138826631,0.92933362,2225.7,2224.7,0.94875219]
[1770138826818,1.12319166,2225.8,2224.7,0.94875219]
[1770138827298,0.9299037,2225.7,2224.7,0.942]
[1770138827499,1.12319166,2225.8,2224.7,0.942]
[1770138827707,1.85616726,2225.8,2224.7,0.942]
[1770138828200,4.49228058,2226.1,2224.9,0.00675219]
[1770138828400,1.12304029,2226.1,2225.1,0.00675219]
[1770138828937,1.12304029,2226.1,2224.8,1.1304487]
[1770138829106,0.930194,2226.0,2224.9,0.942]
[1770138829429,0.93000334,2225.9,2224.8,2.06569651]
[1770138829627,1.12304029,2226.1,2224.8,2.06569651]
[1770138829810,3.20524877,2226.1,2224.8,2.7230952]
[1770138830138,0.92991312,2226.0,2224.8,2.7230952]
[1770138830318,1.12319166,2225.8,2224.8,2.7230952]
[1770138830511,1.12319166,2225.8,2224.8,1.12368711]
[1770138830733,0.9298689,2225.7,2224.8,1.12368711]
[1770138830911,1.12319166,2225.8,2224.8,1.12368711]
[1770138831517,0.93033967,2225.7,2224.8,1.12368711]
[1770138831834,1.12319166,2225.8,2224.8,1.12368711]
[1770138832006,0.56158872,2225.7,2224.8,1.12368711]
[1770138832418,1.12309074,2226.0,2224.8,1.1304393]
[1770138832625,0.93104626,2225.9,2224.8,1.1304393]
[1770138832833,1.12309074,2226.0,2224.9,0.00675219]
[1770138833041,0.93094474,2225.9,2225.0,0.00675219]
[1770138833256,1.12307825,2226.1,2225.1,0.00675219]
[1770138833560,0.93109579,2226.0,2225.1,0.00675219]
[1770138833713,1.79981654,2226.1,2225.1,0.00675219]
[1770138833904,0.93108258,2226.0,2225.1,0.00675219]
[1770138834111,1.12297923,2226.3,2225.3,0.00675219]
[1770138834345,1.12304029,2226.1,2224.6,4.50193499]
[1770138834525,1.12304029,2226.1,2225.1,0.942]
[1770138835041,0.93097476,2226.0,2224.8,1.12368711]
[1770138835217,0.93097476,2225.9,2224.9,0.942]
[1770138835420,0.93097476,2225.8,2224.9,0.942]
[1770138835619,2.27533565,2226.1,2224.9,0.942]
[1770138835814,0.93082838,2226.0,2224.9,0.94875219]
[1770138836140,0.93082838,2225.9,2224.9,0.942]
[1770138836442,2.27533565,2226.1,2225.0,1.1235955]
[1770138836637,0.93069582,2226.0,2225.0,1.1235955]
[1770138836827,0.93069582,2225.9,2225.1,0.65668515]
[1770138837228,0.93069582,2225.9,2225.1,0.66343734]
[1770138837634,1.12304029,2226.1,2225.2,0.00675219]
[1770138837850,0.93069201,2226.0,2225.2,0.00675219]
[1770138838060,1.12304029,2226.1,2225.2,0.00675219]
[1770138838349,0.0011,2225.8,2225.2,0.00675219]
[1770138838550,0.0011,2225.8,2225.3,1.12344403]
[1770138838739,0.0011,2225.8,2225.2,1.13020784]
[1770138839125,0.0011,2225.8,2225.3,0.00675219]
[1770138839348,0.0011,2225.8,2225.4,0.00675219]
[1770138839551,2.27518432,2226.5,2225.4,0.00675219]
[1770138839855,5.42241909,2226.4,2225.5,0.00675219]
[1770138840157,0.93074316,2226.3,2225.5,0.00675219]
[1770138840362,0.0011,2226.6,2226.2,0.00675219]
[1770138840542,1.15229536,2227.5,2226.5,0.00675219]
[1770138840736,0.3078391,2227.7,2226.7,0.00675219]
[1770138840924,0.3078391,2227.7,2227.4,0.00675219]
[1770138841130,1.43008333,2227.7,2226.3,2.07169159]
[1770138841431,0.93143082,2227.6,2226.2,2.0717031]
[1770138841625,1.78163197,2227.5,2226.2,2.0717031]
[1770138841826,1.78163197,2227.5,2226.6,0.00675219]
[1770138842025,2.08372618,2227.6,2226.5,0.00675219]
[1770138842226,14.83334043,2227.6,2226.1,0.00675219]
[1770138842454,1.12233445,2227.5,2226.5,0.00675219]
[1770138842632,1.12233445,2227.5,2226.7,0.00675219]
[1770138842833,1.12233445,2227.5,2226.6,0.00675219]
[1770138843137,13.31078148,2227.4,2225.6,1.12325397]
[1770138843331,17.47761425,2227.2,2226.0,0.00675219]
[1770138843652,0.942,2227.3,2226.5,0.00675219]
[1770138844157,0.942,2227.3,2226.2,0.00675219]
[1770138844528,13.87209988,2227.2,2225.7,0.00675219]
[1770138844734,2.40320424,2227.1,2226.1,0.00675219]
[1770138845395,12.74961425,2226.9,2225.7,0.00675219]
[1770138845576,12.74961425,2226.5,2224.9,0.00775219]
[1770138845883,13.69161425,2226.4,2225.1,0.00675219]
[1770138846095,12.74961425,2226.0,2224.6,0.00775219]
[1770138846384,12.74961425,2226.0,2224.7,0.00675219]
[1770138846584,1.12319166,2225.8,2224.8,0.00675219]
[1770138847146,13.69161425,2225.7,2224.6,0.001]
[1770138847747,13.69161425,2225.7,2224.7,0.00675219]
[1770138848067,0.942,2225.7,2224.8,0.00675219]
[1770138848471,0.942,2225.7,2224.7,0.00675219]
[1770138848675,1.12329259,2225.6,2224.7,0.00675219]
[1770138848878,1.12329259,2225.6,2224.8,0.00675219]
[1770138849079,1.12329259,2225.6,2224.9,0.00675219]
[1770138849464,12.74961425,2225.5,2223.7,1.1319713]
[1770138849664,12.74961425,2225.5,2223.8,0.00675219]
[1770138849964,12.74961425,2225.3,2224.1,0.00675219]
[1770138850289,12.74961425,2225.3,2224.0,0.00675219]
[1770138850490,12.74961425,2225.3,2223.7,0.001]
[1770138850669,12.74961425,2225.1,2223.7,0.001]
[1770138850863,12.74961425,2225.1,2223.9,0.00675219]
[1770138851069,1.38731088,2225.0,2223.9,0.00675219]
[1770138851362,2.32931088,2225.0,2223.8,0.00675219]
[1770138851564,15.07892513,2225.0,2223.7,0.001]
[1770138851967,12.74961425,2224.2,2222.3,0.00675219]
[1770138852193,12.74961425,2224.0,2222.2,0.00675219]
[1770138852488,15.21072502,2223.9,2222.2,0.00675219]
[1770138852690,1.12425237,2223.7,2222.3,0.00675219]
[1770138852896,1.29241105,2223.6,2222.3,0.00675219]
[1770138853193,0.942,2223.5,2222.3,0.00675219]
[1770138853499,14.0420253,2223.4,2221.9,0.00675219]
[1770138853704,2.79081358,2223.3,2221.9,0.00675219]
[1770138853867,1.29241105,2223.2,2221.9,0.00675219]
[1770138854270,1.29241105,2223.2,2221.4,12.60128759]
[1770138854271,14.0420253,2223.2,2221.4,12.60128759]
[1770138854570,13.87432182,2222.8,2221.4,12.5945354]
[1770138854772,12.74961425,2222.6,2221.1,0.0447]
[1770138855075,1.29241105,2222.5,2221.2,0.00675219]
[1770138855282,1.29241105,2222.5,2221.1,0.0447]
[1770138855479,14.0420253,2222.5,2220.9,15.75145886]
[1770138855679,12.74961425,2222.3,2220.4,0.00675219]
[1770138856004,0.00675219,2222.0,2220.0,12.30004575]
[1770138856202,3.52142,2221.9,2220.0,12.30004575]
[1770138856402,3.52142,2221.9,2220.1,0.00675265]
[1770138856403,2.22547105,2221.9,2220.1,0.00675265]
[1770138856706,1.12521379,2221.8,2221.0,0.00675265]
[1770138857006,1.12521379,2221.8,2220.8,0.00675265]
[1770138857208,1.28347105,2221.9,2221.2,0.00675265]
[1770138857384,1.28347105,2221.9,2221.4,0.00675265]
[1770138857706,0.942,2222.5,2221.7,0.00675265]
[1770138857707,1.12489379,2222.5,2221.7,0.00675265]
[1770138858096,1.12489379,2222.5,2221.6,0.00675265]
[1770138858487,4.4988303,2222.9,2221.9,0.00675265]
[1770138858804,1.12465697,2222.9,2222.1,0.00675265]
[1770138859003,1.76966314,2222.9,2221.4,12.30004575]
[1770138859304,0.00675265,2222.4,2220.9,12.30004575]
[1770138859506,0.92047759,2222.3,2220.8,1.23203037]
[1770138859821,0.92047759,2222.3,2220.4,12.30004575]
[1770138859822,0.00675265,2221.9,2220.4,12.30004575]
[1770138859987,0.00675265,2221.6,2219.9,12.30004575]
[1770138860304,0.00675447,2221.8,2220.2,12.30004575]
[1770138860492,0.943,2222.0,2220.3,1.23675905]
[1770138860691,1.12521379,2221.8,2220.3,1.23675905]
[1770138861094,1.12519636,2221.9,2220.8,0.00675447]
[1770138861301,1.12519636,2221.9,2220.5,12.09166852]
[1770138861477,1.12519636,2221.9,2220.3,1.23000458]
[1770138861681,0.56258489,2221.8,2220.2,0.943]
[1770138861902,0.56258489,2221.8,2220.2,0.94975447]
[1770138862318,0.56258489,2221.8,2220.3,0.00675447]
[1770138862536,1.12519636,2221.9,2221.0,0.00675447]
[1770138862681,4.50006908,2222.2,2221.0,0.00675447]
[1770138862882,4.50006908,2222.2,2221.1,0.00675447]
[1770138863077,4.50006908,2222.2,2221.4,0.00675447]
[1770138863311,1.12501125,2222.2,2221.5,0.00675447]
[1770138863481,1.12484375,2222.6,2221.3,12.09166852]
[1770138863816,1.12484375,2222.6,2221.7,0.00675447]
[1770138864309,1.12484375,2222.6,2221.4,1.2098423]
[1770138864511,1.12484375,2222.6,2221.1,0.94975447]
[1770138864713,0.0011,2221.6,2221.3,0.00675447]
[1770138865011,0.0011,2221.6,2221.0,0.00675447]
[1770138865215,0.0011,2221.6,2221.2,0.00675447]
[1770138865383,0.0011,2221.6,2221.4,0.00675447]
[1770138866580,0.0011,2221.8,2221.4,0.00675447]
[1770138867290,0.0011,2221.8,2221.6,0.00675447]
[1770138867489,1.12485939,2222.5,2221.6,0.00675447]
[1770138867490,1.14524101,2222.5,2221.6,0.00675447]
[1770138867690,1.12476964,2222.7,2222.0,0.00675447]
[1770138867890,0.91711153,2222.6,2222.0,0.00675447]
[1770138868096,0.91711153,2222.5,2222.0,0.00675447]
[1770138868389,0.91711153,2222.4,2221.8,0.00675447]
[1770138868724,0.91834233,2222.3,2221.6,0.00675447]
[1770138868921,0.91829384,2222.2,2221.4,1.13216295]
[1770138869087,2.27013736,2222.5,2221.6,1.13206955]
[1770138869427,1.14524101,2222.1,2221.5,1.1253651]
[1770138869726,0.91830045,2222.0,2221.7,0.00675447]
[1770138869938,3.41533365,2222.6,2221.8,0.00675447]
[1770138869939,1.14524101,2222.5,2221.8,0.00675447]
[1770138870283,2.27010792,2222.5,2221.7,0.00675447]
[1770138870483,1.14524101,2222.5,2221.8,0.00675447]
[1770138870690,1.14524101,2222.4,2221.8,0.00675447]
[1770138870920,1.14524101,2222.4,2221.6,0.00675447]
[1770138871087,1.14524101,2222.4,2221.7,1.12526443]
[1770138871300,2.27015912,2222.4,2221.6,3.00021975]
[1770138871552,1.14524101,2222.4,2221.7,0.00675447]
[1770138871747,1.52698801,2222.8,2222.1,0.00675447]
[1770138872040,2.29048202,2223.7,2222.3,12.09842299]
[1770138872233,1.12416139,2223.9,2222.6,12.09166852]
[1770138872445,1.12416139,2223.9,2222.7,0.943]
[1770138872602,0.3036345,2224.0,2222.7,0.943]
[1770138872803,1.42773584,2224.0,2222.7,12.09166852]
[1770138873014,0.3036345,2224.0,2222.9,1.12465697]
[1770138873205,2.59411652,2224.0,2223.0,12.74829701]
[1770138873424,2.29048202,2224.7,2223.3,0.00675447]
[1770138873735,2.29048202,2224.9,2224.3,0.00675447]
[1770138873951,3.41400496,2225.2,2224.6,0.00675447]
[1770138874114,1.12352294,2225.2,2223.9,0.00675447]
[1770138874305,2.29048202,2225.1,2223.6,0.00675447]
[1770138874642,2.29048202,2224.8,2223.7,0.00675447]
[1770138874848,2.29048202,2224.9,2224.0,0.00675447]
[1770138875009,1.12369651,2224.8,2224.0,0.00675447]
[1770138875209,1.12369651,2224.8,2224.1,0.00675447]
[1770138875424,1.12369651,2224.8,2224.2,0.00675447]
[1770138875647,2.29048202,2224.9,2224.4,0.00675447]
[1770138875803,1.12362161,2225.0,2224.3,0.00675447]
[1770138876007,1.12362161,2225.0,2224.2,0.00675447]
[1770138876008,4.74288604,2225.0,2224.1,0.00675447]
[1770138876222,4.74288604,2225.0,2223.9,0.00675447]
[1770138876551,2.29048202,2224.9,2224.0,0.00675447]
[1770138876715,4.74288604,2225.0,2224.0,0.00675447]
[1770138876909,3.41410363,2225.0,2224.3,0.00675447]
[1770138877221,1.12362161,2225.0,2224.4,0.00675447]
[1770138877422,1.12362161,2225.0,2224.5,0.00675447]
[1770138878337,0.0011,2224.7,2224.3,0.00675447]
[1770138878538,0.0011,2224.7,2224.2,0.00675447]
[1770138879447,0.0011,2224.7,2224.0,0.00675447]
[1770138879812,0.0011,2224.7,2224.0,1.130853]
[1770138880116,0.0011,2224.7,2224.4,0.00675447]
[1770138880311,0.0011,2224.7,2224.3,0.00675447]
[1770138880526,0.0011,2224.7,2224.3,1.13070357]
[1770138880724,0.0011,2224.7,2224.5,0.00675447]
[1770138880929,1.12345544,2225.3,2224.5,0.00675447]
[1770138881126,1.12334306,2225.5,2224.5,1.13059895]
[1770138881340,2.29048202,2225.6,2224.5,1.12384448]
[1770138881541,1.12429702,2225.8,2224.9,0.00675447]
[1770138881719,1.12429479,2225.8,2224.8,0.00675447]
[1770138881918,0.92605577,2225.7,2224.6,0.56259912]
[1770138882248,0.92605577,2225.6,2224.6,0.56259912]